[Event "Chessable Masters - Torneo preliminare"]
[White "Volkov, Sergey"]
[Black "Guseinov, Gadir"]
[WhiteFideId "4122763"]
[BlackFideId "13401378"]
[WhiteElo "2496"]
[BlackElo "2632"]
[Result "1-0"]
[Round "5"]
[TimeControl "600+2"]
[Date "2023.03.13"]
[WhiteClock "0:02:34"]
[BlackClock "0:00:36"]

1. d4 {[%clk 0:10:01]}  Nf6 {[%clk 0:09:59]} 2. c4 {[%clk 0:10:02]}  g6 {[%clk 0:10:01]} 3. Nc3 {[%clk 0:10:02]}  Bg7 {[%clk 0:10:02]} 4. e4 {[%clk 0:10:03]}  d6 {[%clk 0:10:04]} 5. h3 {[%clk 0:10:03]}  Nbd7 {[%clk 0:09:59]} 6. Nf3 {[%clk 0:09:30]}  e5 {[%clk 0:09:55]} 7. d5 {[%clk 0:09:29]}  Nc5 {[%clk 0:09:56]} 8. Nd2 {[%clk 0:09:26]}  a5 {[%clk 0:09:56]} 9. Be2 {[%clk 0:09:09]}  h5 {[%clk 0:09:28]} 10. b3 {[%clk 0:08:53]}  Bh6 {[%clk 0:09:26]} 11. Qc2 {[%clk 0:08:50]}  h4 {[%clk 0:09:27]} 12. O-O {[%clk 0:08:43]}  Kf8 {[%clk 0:09:17]} 13. Rb1 {[%clk 0:08:36]}  c6 {[%clk 0:09:10]} 14. dxc6 {[%clk 0:08:04]}  bxc6 {[%clk 0:09:10]} 15. Rd1 {[%clk 0:08:04]}  Ne6 {[%clk 0:07:46]} 16. Nf3 {[%clk 0:08:00]}  Bxc1 {[%clk 0:07:47]} 17. Qxc1 {[%clk 0:07:59]}  Qe7 {[%clk 0:07:43]} 18. Qd2 {[%clk 0:07:22]}  Ne8 {[%clk 0:07:43]} 19. a3 {[%clk 0:07:07]}  Nf4 {[%clk 0:06:57]} 20. Bf1 {[%clk 0:07:06]}  Qf6 {[%clk 0:06:52]} 21. Qe3 {[%clk 0:07:01]}  Kg7 {[%clk 0:06:01]} 22. c5 {[%clk 0:06:49]}  Rh5 {[%clk 0:05:46]} 23. cxd6 {[%clk 0:06:27]}  Nxd6 {[%clk 0:05:48]} 24. Rd2 {[%clk 0:06:15]}  Nb7 {[%clk 0:04:01]} 25. Rbd1 {[%clk 0:05:43]}  Qe7 {[%clk 0:03:45]} 26. Na4 {[%clk 0:05:36]}  Be6 {[%clk 0:03:04]} 27. Nb6 {[%clk 0:05:11]}  Rb8 {[%clk 0:02:52]} 28. Nd7 {[%clk 0:05:08]}  Bxd7 {[%clk 0:02:13]} 29. Rxd7 {[%clk 0:05:07]}  Qf6 {[%clk 0:02:06]} 30. Bc4 {[%clk 0:04:54]}  Nd8 {[%clk 0:01:54]} 31. Qa7 {[%clk 0:04:05]}  Rc8 {[%clk 0:01:06]} 32. Ba6 {[%clk 0:04:01]}  Rg5 {[%clk 0:00:51]} 33. Bxc8 {[%clk 0:03:35]}  Nxg2 {[%clk 0:00:46]} 34. Nxg5 {[%clk 0:03:13]}  Qxg5 {[%clk 0:00:48]} 35. Kf1 {[%clk 0:03:10]}  Nf4 {[%clk 0:00:45]} 36. Rxd8 {[%clk 0:02:44]}  Qg2+ {[%clk 0:00:45]} 37. Ke1 {[%clk 0:02:43]}  Qf3 {[%clk 0:00:44]} 38. Bg4 {[%clk 0:02:33]}  Qxe4+ {[%clk 0:00:36]} 39. Kd2 {[%clk 0:02:34]} 1-0


[Site "Internet"]

[Event "Chessable Masters - Torneo preliminare"]
[White "Rasulov, Vugar"]
[Black "Hambleton, Aman"]
[WhiteFideId "13402390"]
[BlackFideId "2606577"]
[WhiteElo "2415"]
[BlackElo "2447"]
[Result "1-0"]
[Round "5"]
[TimeControl "600+2"]
[Date "2023.03.13"]
[WhiteClock "0:06:47"]
[BlackClock "0:00:07"]

1. d4 {[%clk 0:10:01]}  Nf6 {[%clk 0:10:00]} 2. c4 {[%clk 0:10:02]}  e6 {[%clk 0:09:59]} 3. Nf3 {[%clk 0:10:03]}  b6 {[%clk 0:09:59]} 4. g3 {[%clk 0:10:03]}  Ba6 {[%clk 0:10:00]} 5. Qc2 {[%clk 0:10:02]}  Bb7 {[%clk 0:09:54]} 6. Bg2 {[%clk 0:10:02]}  Bb4+ {[%clk 0:08:03]} 7. Bd2 {[%clk 0:09:58]}  Qe7 {[%clk 0:07:56]} 8. O-O {[%clk 0:09:57]}  Bxd2 {[%clk 0:07:57]} 9. Qxd2 {[%clk 0:09:56]}  d6 {[%clk 0:07:56]} 10. Qc2 {[%clk 0:09:50]}  O-O {[%clk 0:07:49]} 11. Nc3 {[%clk 0:09:51]}  Nbd7 {[%clk 0:07:50]} 12. e4 {[%clk 0:09:50]}  e5 {[%clk 0:07:51]} 13. Rfe1 {[%clk 0:09:46]}  Rfe8 {[%clk 0:07:49]} 14. b3 {[%clk 0:09:36]}  Nf8 {[%clk 0:07:02]} 15. h4 {[%clk 0:09:21]}  c6 {[%clk 0:06:39]} 16. a4 {[%clk 0:09:13]}  a5 {[%clk 0:06:14]} 17. Rad1 {[%clk 0:09:10]}  Rad8 {[%clk 0:06:08]} 18. Qb2 {[%clk 0:08:52]}  Bc8 {[%clk 0:05:08]} 19. Qa3 {[%clk 0:08:30]}  Qc7 {[%clk 0:03:56]} 20. d5 {[%clk 0:07:32]}  c5 {[%clk 0:02:21]} 21. Nd2 {[%clk 0:07:22]}  h6 {[%clk 0:01:56]} 22. Nf1 {[%clk 0:07:23]}  g5 {[%clk 0:01:17]} 23. hxg5 {[%clk 0:07:23]}  hxg5 {[%clk 0:01:19]} 24. Qc1 {[%clk 0:07:19]}  N8h7 {[%clk 0:01:20]} 25. Ne3 {[%clk 0:07:10]}  Kg7 {[%clk 0:01:10]} 26. f3 {[%clk 0:07:11]}  Rh8 {[%clk 0:01:01]} 27. Kf2 {[%clk 0:07:09]}  Ng8 {[%clk 0:00:20]} 28. Rh1 {[%clk 0:07:08]}  Ne7 {[%clk 0:00:19]} 29. Rh5 {[%clk 0:07:03]}  f6 {[%clk 0:00:17]} 30. Rdh1 {[%clk 0:07:04]}  Rdg8 {[%clk 0:00:14]} 31. Nb5 {[%clk 0:07:00]}  Qd8 {[%clk 0:00:13]} 32. Bh3 {[%clk 0:06:53]}  Bxh3 {[%clk 0:00:03]} 33. R1xh3 {[%clk 0:06:55]}  Nf8 {[%clk 0:00:04]} 34. Qh1 {[%clk 0:06:56]}  Rxh5 {[%clk 0:00:05]} 35. Rxh5 {[%clk 0:06:58]}  Kf7 {[%clk 0:00:03]} 36. Qh3 {[%clk 0:06:56]}  Kg7 {[%clk 0:00:04]} 37. Ke2 {[%clk 0:06:52]}  Kf7 {[%clk 0:00:05]} 38. Ng4 {[%clk 0:06:52]}  Kg7 {[%clk 0:00:05]} 39. Rh6 {[%clk 0:06:47]}  Nfg6 {[%clk 0:00:06]} 40. Rh7+ {[%clk 0:06:47]}  Kf8 {[%clk 0:00:07]} 41. Qh6+ {[%clk 0:06:47]} 1-0


[Site "Internet"]

[Event "Chessable Masters - Torneo preliminare"]
[White "Vetoshko, Volodymyr"]
[Black "Sattarov, Bobir"]
[WhiteFideId "14122480"]
[BlackFideId "14203081"]
[WhiteElo "2457"]
[BlackElo "2333"]
[Result "1-0"]
[Round "5"]
[TimeControl "600+2"]
[Date "2023.03.13"]
[WhiteClock "0:00:07"]
[BlackClock "0:00:36"]

1. e4 {[%clk 0:09:45]}  e5 {[%clk 0:09:59]} 2. Nf3 {[%clk 0:09:46]}  Nc6 {[%clk 0:10:00]} 3. Nc3 {[%clk 0:09:47]}  Nf6 {[%clk 0:10:00]} 4. d4 {[%clk 0:09:48]}  exd4 {[%clk 0:09:51]} 5. Nxd4 {[%clk 0:09:50]}  d6 {[%clk 0:09:41]} 6. Bb5 {[%clk 0:09:48]}  Bd7 {[%clk 0:09:42]} 7. Bxc6 {[%clk 0:09:49]}  Bxc6 {[%clk 0:09:44]} 8. Nxc6 {[%clk 0:09:39]}  bxc6 {[%clk 0:09:46]} 9. Qf3 {[%clk 0:09:35]}  Nd7 {[%clk 0:09:43]} 10. Qg3 {[%clk 0:08:56]}  g6 {[%clk 0:09:32]} 11. O-O {[%clk 0:08:33]}  Bg7 {[%clk 0:09:29]} 12. Bd2 {[%clk 0:08:27]}  O-O {[%clk 0:09:27]} 13. Rae1 {[%clk 0:08:22]}  Qb8 {[%clk 0:09:19]} 14. b3 {[%clk 0:08:21]}  Qb6 {[%clk 0:09:18]} 15. Kh1 {[%clk 0:08:11]}  Rae8 {[%clk 0:09:19]} 16. Qh3 {[%clk 0:07:51]}  Qd4 {[%clk 0:08:33]} 17. Nb1 {[%clk 0:06:56]}  Nf6 {[%clk 0:08:16]} 18. Bc3 {[%clk 0:06:42]}  Qc5 {[%clk 0:08:15]} 19. Qf3 {[%clk 0:04:12]}  Re6 {[%clk 0:08:11]} 20. Nd2 {[%clk 0:03:34]}  Rfe8 {[%clk 0:08:04]} 21. b4 {[%clk 0:03:34]}  Qb5 {[%clk 0:07:58]} 22. Bxf6 {[%clk 0:01:36]}  Bxf6 {[%clk 0:07:48]} 23. Qb3 {[%clk 0:01:32]}  d5 {[%clk 0:05:45]} 24. f3 {[%clk 0:01:21]}  Bg5 {[%clk 0:05:22]} 25. c4 {[%clk 0:00:47]}  Qb7 {[%clk 0:04:59]} 26. f4 {[%clk 0:00:30]}  Bh4 {[%clk 0:04:55]} 27. g3 {[%clk 0:00:28]}  Bf6 {[%clk 0:04:50]} 28. e5 {[%clk 0:00:26]}  Be7 {[%clk 0:04:51]} 29. c5 {[%clk 0:00:24]}  Rb8 {[%clk 0:04:46]} 30. Rb1 {[%clk 0:00:17]}  f6 {[%clk 0:04:33]} 31. Nf3 {[%clk 0:00:16]}  fxe5 {[%clk 0:04:30]} 32. Nxe5 {[%clk 0:00:16]}  Bf6 {[%clk 0:04:24]} 33. Nd7 {[%clk 0:00:11]}  Rd8 {[%clk 0:04:25]} 34. Nxf6+ {[%clk 0:00:12]}  Rxf6 {[%clk 0:04:27]} 35. Rbe1 {[%clk 0:00:11]}  Rf7 {[%clk 0:04:25]} 36. Qc3 {[%clk 0:00:04]}  Qb5 {[%clk 0:04:14]} 37. a3 {[%clk 0:00:04]}  d4 {[%clk 0:04:13]} 38. Qb3 {[%clk 0:00:05]}  d3 {[%clk 0:04:08]} 39. Re7 {[%clk 0:00:05]}  Rd5 {[%clk 0:04:10]} 40. Re8+ {[%clk 0:00:04]}  Rf8 {[%clk 0:04:09]} 41. Rxf8+ {[%clk 0:00:06]}  Kxf8 {[%clk 0:04:11]} 42. Rd1 {[%clk 0:00:06]}  d2 {[%clk 0:03:48]} 43. Qe3 {[%clk 0:00:07]}  Qc4 {[%clk 0:03:40]} 44. Kg2 {[%clk 0:00:08]}  Qc2 {[%clk 0:03:40]} 45. Qe2 {[%clk 0:00:09]}  Kf7 {[%clk 0:03:21]} 46. h4 {[%clk 0:00:08]}  h5 {[%clk 0:03:19]} 47. f5 {[%clk 0:00:07]}  gxf5 {[%clk 0:02:24]} 48. Qxh5+ {[%clk 0:00:09]}  Ke7 {[%clk 0:02:26]} 49. Qe2+ {[%clk 0:00:10]}  Kd7 {[%clk 0:02:27]} 50. h5 {[%clk 0:00:12]}  Qc3 {[%clk 0:02:21]} 51. h6 {[%clk 0:00:10]}  Rd3 {[%clk 0:02:22]} 52. Qf2 {[%clk 0:00:05]}  Rd5 {[%clk 0:01:20]} 53. h7 {[%clk 0:00:06]}  Qg7 {[%clk 0:01:21]} 54. Rxd2 {[%clk 0:00:05]}  Qxh7 {[%clk 0:01:22]} 55. Rxd5+ {[%clk 0:00:04]}  cxd5 {[%clk 0:01:24]} 56. Qd4 {[%clk 0:00:05]}  Qf7 {[%clk 0:01:20]} 57. c6+ {[%clk 0:00:04]}  Kxc6 {[%clk 0:01:19]} 58. Qxa7 {[%clk 0:00:06]}  Kd7 {[%clk 0:01:04]} 59. Qa4+ {[%clk 0:00:06]}  Kd6 {[%clk 0:01:04]} 60. Qa6+ {[%clk 0:00:06]}  c6 {[%clk 0:01:00]} 61. b5 {[%clk 0:00:07]}  d4 {[%clk 0:00:48]} 62. Qxc6+ {[%clk 0:00:07]}  Ke5 {[%clk 0:00:50]} 63. Qc5+ {[%clk 0:00:06]}  Ke4 {[%clk 0:00:52]} 64. Qc6+ {[%clk 0:00:08]}  Ke3 {[%clk 0:00:52]} 65. Qf3+ {[%clk 0:00:08]}  Kd2 {[%clk 0:00:53]} 66. b6 {[%clk 0:00:09]}  d3 {[%clk 0:00:52]} 67. b7 {[%clk 0:00:09]}  Qb3 {[%clk 0:00:46]} 68. Qf4+ {[%clk 0:00:10]}  Ke1 {[%clk 0:00:42]} 69. b8=Q {[%clk 0:00:06]}  Qc2+ {[%clk 0:00:35]} 70. Kh3 {[%clk 0:00:06]}  d2 {[%clk 0:00:37]} 71. Qbe5+ {[%clk 0:00:07]}  Kd1 {[%clk 0:00:36]} 72. Qf1# {[%clk 0:00:07]} 1-0


[Site "Internet"]

[Event "Chessable Masters - Torneo preliminare"]
[White "Golubev, Mikhail"]
[Black "Weetik, Vjacheslav"]
[WhiteFideId "14100983"]
[BlackFideId "4153472"]
[WhiteElo "2361"]
[BlackElo "2445"]
[Result "0-1"]
[Round "5"]
[TimeControl "600+2"]
[Date "2023.03.13"]
[WhiteClock "0:00:06"]
[BlackClock "0:00:41"]

1. e4 {[%clk 0:09:47]}  c6 {[%clk 0:10:00]} 2. d4 {[%clk 0:09:46]}  d5 {[%clk 0:10:01]} 3. Nc3 {[%clk 0:09:43]}  dxe4 {[%clk 0:10:02]} 4. Nxe4 {[%clk 0:09:44]}  Bf5 {[%clk 0:10:04]} 5. Ng3 {[%clk 0:09:44]}  Bg6 {[%clk 0:10:05]} 6. c3 {[%clk 0:09:43]}  e6 {[%clk 0:09:59]} 7. Nh3 {[%clk 0:09:31]}  Bd6 {[%clk 0:09:55]} 8. Nf4 {[%clk 0:09:20]}  Nf6 {[%clk 0:09:51]} 9. h4 {[%clk 0:09:17]}  Bxf4 {[%clk 0:09:52]} 10. Bxf4 {[%clk 0:09:17]}  h6 {[%clk 0:09:54]} 11. h5 {[%clk 0:09:13]}  Bh7 {[%clk 0:09:54]} 12. Be2 {[%clk 0:08:37]}  Nd5 {[%clk 0:09:36]} 13. Bd2 {[%clk 0:08:32]}  O-O {[%clk 0:09:30]} 14. O-O {[%clk 0:08:17]}  Nd7 {[%clk 0:08:08]} 15. c4 {[%clk 0:07:32]}  N5f6 {[%clk 0:08:03]} 16. Bf4 {[%clk 0:06:44]}  Qb6 {[%clk 0:07:21]} 17. Qd2 {[%clk 0:06:21]}  Rfe8 {[%clk 0:06:39]} 18. Qc3 {[%clk 0:05:49]}  a5 {[%clk 0:05:38]} 19. b3 {[%clk 0:04:37]}  c5 {[%clk 0:04:51]} 20. dxc5 {[%clk 0:04:36]}  Qxc5 {[%clk 0:04:47]} 21. Be3 {[%clk 0:03:46]}  Qc7 {[%clk 0:04:35]} 22. Rac1 {[%clk 0:03:28]}  b6 {[%clk 0:04:19]} 23. a3 {[%clk 0:03:14]}  Rac8 {[%clk 0:03:47]} 24. Qb2 {[%clk 0:02:59]}  e5 {[%clk 0:02:33]} 25. b4 {[%clk 0:02:43]}  axb4 {[%clk 0:02:34]} 26. axb4 {[%clk 0:02:44]}  Nf8 {[%clk 0:02:06]} 27. c5 {[%clk 0:02:35]}  bxc5 {[%clk 0:02:08]} 28. Rxc5 {[%clk 0:02:27]}  Qb8 {[%clk 0:02:09]} 29. Rfc1 {[%clk 0:02:10]}  Rxc5 {[%clk 0:02:08]} 30. Rxc5 {[%clk 0:01:54]}  N8d7 {[%clk 0:02:09]} 31. Rc1 {[%clk 0:01:46]}  Nd5 {[%clk 0:02:07]} 32. Rd1 {[%clk 0:01:15]}  N7f6 {[%clk 0:02:01]} 33. Bc5 {[%clk 0:01:00]}  Nf4 {[%clk 0:01:58]} 34. Bf1 {[%clk 0:00:55]}  Qb7 {[%clk 0:01:26]} 35. Bd6 {[%clk 0:00:17]}  Ng4 {[%clk 0:01:12]} 36. b5 {[%clk 0:00:05]}  Rd8 {[%clk 0:01:00]} 37. b6 {[%clk 0:00:06]}  Bd3 {[%clk 0:00:41]} 0-1


[Site "Internet"]

[Event "Chessable Masters - Torneo preliminare"]
[White "Huschenbeth, Niclas"]
[Black "Vasquez Schroeder, Rodrigo"]
[WhiteFideId "24604747"]
[BlackFideId "3400042"]
[WhiteElo "2566"]
[BlackElo "2589"]
[Result "0-1"]
[Round "5"]
[TimeControl "600+2"]
[Date "2023.03.13"]
[WhiteClock "0:00:04"]
[BlackClock "0:04:39"]

1. e4 {[%clk 0:10:01]}  c5 {[%clk 0:08:38]} 2. Nf3 {[%clk 0:10:00]}  d6 {[%clk 0:08:39]} 3. d4 {[%clk 0:10:00]}  cxd4 {[%clk 0:08:40]} 4. Nxd4 {[%clk 0:10:02]}  Nf6 {[%clk 0:08:41]} 5. Nc3 {[%clk 0:10:04]}  a6 {[%clk 0:08:42]} 6. Be3 {[%clk 0:09:49]}  e6 {[%clk 0:08:41]} 7. a3 {[%clk 0:09:46]}  b5 {[%clk 0:08:38]} 8. g4 {[%clk 0:09:42]}  Bb7 {[%clk 0:08:37]} 9. Bg2 {[%clk 0:09:27]}  h6 {[%clk 0:08:35]} 10. h4 {[%clk 0:09:24]}  h5 {[%clk 0:08:29]} 11. gxh5 {[%clk 0:08:35]}  Rxh5 {[%clk 0:08:27]} 12. Bf3 {[%clk 0:07:59]}  Re5 {[%clk 0:08:03]} 13. Bf4 {[%clk 0:07:53]}  Qb6 {[%clk 0:07:57]} 14. Bxe5 {[%clk 0:07:29]}  dxe5 {[%clk 0:07:58]} 15. Nb3 {[%clk 0:07:24]}  Nc6 {[%clk 0:07:54]} 16. Qd3 {[%clk 0:07:10]}  Rd8 {[%clk 0:07:45]} 17. Qe3 {[%clk 0:07:07]}  Nd4 {[%clk 0:07:42]} 18. O-O-O {[%clk 0:05:50]}  a5 {[%clk 0:07:33]} 19. Ne2 {[%clk 0:04:42]}  Nxb3+ {[%clk 0:07:25]} 20. Qxb3 {[%clk 0:04:44]}  Rc8 {[%clk 0:07:25]} 21. Nc3 {[%clk 0:04:25]}  Bc6 {[%clk 0:07:26]} 22. Be2 {[%clk 0:04:03]}  Rb8 {[%clk 0:07:25]} 23. a4 {[%clk 0:02:56]}  bxa4 {[%clk 0:07:06]} 24. Qxb6 {[%clk 0:02:57]}  Rxb6 {[%clk 0:07:08]} 25. f3 {[%clk 0:02:52]}  a3 {[%clk 0:07:07]} 26. b3 {[%clk 0:02:42]}  Bc5 {[%clk 0:07:05]} 27. Bc4 {[%clk 0:01:16]}  Nh5 {[%clk 0:06:42]} 28. Ne2 {[%clk 0:01:06]}  a4 {[%clk 0:06:41]} 29. Kb1 {[%clk 0:01:05]}  axb3 {[%clk 0:06:36]} 30. cxb3 {[%clk 0:01:06]}  Ke7 {[%clk 0:06:28]} 31. Ka2 {[%clk 0:01:07]}  g6 {[%clk 0:06:28]} 32. Rc1 {[%clk 0:01:04]}  Bb4 {[%clk 0:06:28]} 33. Rc2 {[%clk 0:01:00]}  f5 {[%clk 0:06:23]} 34. Bd3 {[%clk 0:00:57]}  Nf6 {[%clk 0:06:24]} 35. Ng3 {[%clk 0:00:53]}  Be8 {[%clk 0:06:10]} 36. Rhc1 {[%clk 0:00:38]}  Bd6 {[%clk 0:06:10]} 37. Rc8 {[%clk 0:00:34]}  Bd7 {[%clk 0:05:25]} 38. Rh8 {[%clk 0:00:34]}  Bb4 {[%clk 0:05:26]} 39. Ra8 {[%clk 0:00:13]}  Rd6 {[%clk 0:05:26]} 40. Rd1 {[%clk 0:00:10]}  f4 {[%clk 0:05:15]} 41. Nh1 {[%clk 0:00:05]}  Bb5 {[%clk 0:05:09]} 42. Ra7+ {[%clk 0:00:05]}  Nd7 {[%clk 0:05:05]} 43. Bc2 {[%clk 0:00:05]}  Be2 {[%clk 0:05:00]} 44. Rxd6 {[%clk 0:00:05]}  Kxd6 {[%clk 0:05:01]} 45. Nf2 {[%clk 0:00:04]}  Bxf3 {[%clk 0:04:59]} 46. Bd1 {[%clk 0:00:05]}  Bxd1 {[%clk 0:04:55]} 47. Nxd1 {[%clk 0:00:07]}  Bc5 {[%clk 0:04:51]} 48. Ra6+ {[%clk 0:00:08]}  Ke7 {[%clk 0:04:53]} 49. b4 {[%clk 0:00:05]}  Bxb4 {[%clk 0:04:53]} 50. Kb3 {[%clk 0:00:04]}  Bc5 {[%clk 0:04:53]} 51. Kc4 {[%clk 0:00:05]}  f3 {[%clk 0:04:54]} 52. Kd3 {[%clk 0:00:06]}  Nf6 {[%clk 0:04:51]} 53. Rc6 {[%clk 0:00:06]}  f2 {[%clk 0:04:49]} 54. Ke2 {[%clk 0:00:07]}  Nxe4 {[%clk 0:04:50]} 55. Nxf2 {[%clk 0:00:03]}  Bxf2 {[%clk 0:04:51]} 56. Kf3 {[%clk 0:00:04]}  a2 {[%clk 0:04:40]} 57. Ra6 {[%clk 0:00:05]}  Bd4 {[%clk 0:04:36]} 58. Rxa2 {[%clk 0:00:05]}  Nd6 {[%clk 0:04:37]} 59. Kg4 {[%clk 0:00:06]}  Kf6 {[%clk 0:04:38]} 60. Ra6 {[%clk 0:00:05]}  Nf5 {[%clk 0:04:39]} 61. Ra8 {[%clk 0:00:05]}  e4 {[%clk 0:04:39]} 62. Kf4 {[%clk 0:00:04]}  e3 {[%clk 0:04:39]} 0-1


[Site "Internet"]

[Event "Chessable Masters - Torneo preliminare"]
[White "Shyam, Sundar M."]
[Black "Girya, Olga"]
[WhiteFideId "5019141"]
[BlackFideId "4195752"]
[WhiteElo "2464"]
[BlackElo "2327"]
[Result "0-1"]
[Round "5"]
[TimeControl "600+2"]
[Date "2023.03.13"]
[WhiteClock "0:00:05"]
[BlackClock "0:00:47"]

1. e4 {[%clk 0:10:01]}  e5 {[%clk 0:09:59]} 2. Nf3 {[%clk 0:10:02]}  Nc6 {[%clk 0:10:00]} 3. Bb5 {[%clk 0:10:04]}  a6 {[%clk 0:10:00]} 4. Ba4 {[%clk 0:10:05]}  Nf6 {[%clk 0:10:01]} 5. O-O {[%clk 0:10:07]}  Nxe4 {[%clk 0:10:02]} 6. d4 {[%clk 0:10:05]}  b5 {[%clk 0:10:03]} 7. Bb3 {[%clk 0:10:06]}  d5 {[%clk 0:10:04]} 8. dxe5 {[%clk 0:09:37]}  Be6 {[%clk 0:10:04]} 9. Qe2 {[%clk 0:09:39]}  Nc5 {[%clk 0:09:53]} 10. Rd1 {[%clk 0:09:35]}  Nxb3 {[%clk 0:09:53]} 11. cxb3 {[%clk 0:08:53]}  Be7 {[%clk 0:09:53]} 12. Nc3 {[%clk 0:08:54]}  O-O {[%clk 0:09:53]} 13. Be3 {[%clk 0:08:55]}  Qd7 {[%clk 0:09:34]} 14. Rd2 {[%clk 0:08:41]}  Rad8 {[%clk 0:09:09]} 15. Rad1 {[%clk 0:08:41]}  Qc8 {[%clk 0:09:02]} 16. h3 {[%clk 0:06:59]}  h6 {[%clk 0:06:37]} 17. a3 {[%clk 0:06:28]}  d4 {[%clk 0:06:35]} 18. Nxd4 {[%clk 0:06:20]}  Nxd4 {[%clk 0:06:36]} 19. Rxd4 {[%clk 0:06:09]}  Bxb3 {[%clk 0:06:36]} 20. Nd5 {[%clk 0:04:55]}  Rxd5 {[%clk 0:05:46]} 21. Rxd5 {[%clk 0:04:54]}  Qe6 {[%clk 0:05:12]} 22. Qf3 {[%clk 0:02:09]}  Bxd1 {[%clk 0:05:12]} 23. Rxd1 {[%clk 0:02:10]}  Qxe5 {[%clk 0:05:11]} 24. Bd4 {[%clk 0:02:12]}  Qe6 {[%clk 0:04:22]} 25. Qg3 {[%clk 0:02:10]}  Bf6 {[%clk 0:04:22]} 26. Bxf6 {[%clk 0:01:25]}  Qxf6 {[%clk 0:04:23]} 27. b4 {[%clk 0:01:20]}  Rd8 {[%clk 0:03:56]} 28. Rc1 {[%clk 0:01:06]}  c6 {[%clk 0:03:41]} 29. Qc7 {[%clk 0:00:57]}  Rd2 {[%clk 0:03:38]} 30. Qb6 {[%clk 0:00:53]}  g6 {[%clk 0:02:38]} 31. Rf1 {[%clk 0:00:32]}  Ra2 {[%clk 0:01:32]} 32. Qxa6 {[%clk 0:00:33]}  Qc3 {[%clk 0:01:32]} 33. Rd1 {[%clk 0:00:12]}  Rxa3 {[%clk 0:01:26]} 34. Qc8+ {[%clk 0:00:13]}  Kg7 {[%clk 0:01:24]} 35. Qd7 {[%clk 0:00:13]}  Ra1 {[%clk 0:01:20]} 36. Rxa1 {[%clk 0:00:12]}  Qxa1+ {[%clk 0:01:21]} 37. Kh2 {[%clk 0:00:14]}  Qe5+ {[%clk 0:01:20]} 38. Kg1 {[%clk 0:00:04]}  Qe1+ {[%clk 0:01:20]} 39. Kh2 {[%clk 0:00:05]}  Qxf2 {[%clk 0:01:16]} 40. Qxc6 {[%clk 0:00:05]}  Qf4+ {[%clk 0:01:17]} 41. Kh1 {[%clk 0:00:06]}  Qxb4 {[%clk 0:01:17]} 42. Qb7 {[%clk 0:00:06]}  Qb1+ {[%clk 0:01:15]} 43. Kh2 {[%clk 0:00:07]}  Qb2 {[%clk 0:01:16]} 44. Qe4 {[%clk 0:00:05]}  b4 {[%clk 0:01:15]} 45. Qc4 {[%clk 0:00:05]}  b3 {[%clk 0:01:14]} 46. Qd5 {[%clk 0:00:06]}  Qc3 {[%clk 0:01:12]} 47. Qb5 {[%clk 0:00:05]}  b2 {[%clk 0:01:13]} 48. Qb8 {[%clk 0:00:05]}  h5 {[%clk 0:01:09]} 49. h4 {[%clk 0:00:05]}  Qd4 {[%clk 0:01:05]} 50. g3 {[%clk 0:00:03]}  Qf2+ {[%clk 0:00:51]} 51. Kh3 {[%clk 0:00:03]}  Qf1+ {[%clk 0:00:52]} 52. Kh2 {[%clk 0:00:04]}  b1=Q {[%clk 0:00:46]} 53. Qe5+ {[%clk 0:00:05]}  Qf6 {[%clk 0:00:47]} 0-1


[Site "Internet"]

[Event "Chessable Masters - Torneo preliminare"]
[White "Nigmatov, Ortik"]
[Black "Larino Nieto, David"]
[WhiteFideId "14202131"]
[BlackFideId "2256444"]
[WhiteElo "2344"]
[BlackElo "2496"]
[Result "1-0"]
[Round "5"]
[TimeControl "600+2"]
[Date "2023.03.13"]
[WhiteClock "0:02:20"]
[BlackClock "0:01:31"]

1. e4 {[%clk 0:10:01]}  d5 {[%clk 0:10:00]} 2. exd5 {[%clk 0:09:53]}  Qxd5 {[%clk 0:10:02]} 3. Nc3 {[%clk 0:09:53]}  Qa5 {[%clk 0:10:03]} 4. d4 {[%clk 0:09:54]}  Nf6 {[%clk 0:10:03]} 5. Nf3 {[%clk 0:09:53]}  Nc6 {[%clk 0:10:04]} 6. h3 {[%clk 0:09:44]}  a6 {[%clk 0:09:40]} 7. Bd3 {[%clk 0:09:34]}  Bf5 {[%clk 0:09:35]} 8. O-O {[%clk 0:09:33]}  O-O-O {[%clk 0:09:31]} 9. Ne5 {[%clk 0:09:12]}  Bxd3 {[%clk 0:09:00]} 10. Nxc6 {[%clk 0:09:10]}  bxc6 {[%clk 0:09:02]} 11. Qxd3 {[%clk 0:09:11]}  c5 {[%clk 0:09:03]} 12. Bf4 {[%clk 0:08:23]}  cxd4 {[%clk 0:08:51]} 13. b4 {[%clk 0:08:18]}  Qb6 {[%clk 0:08:41]} 14. Rfd1 {[%clk 0:08:03]}  e6 {[%clk 0:08:27]} 15. Ne2 {[%clk 0:06:28]}  Nd5 {[%clk 0:07:17]} 16. Bg3 {[%clk 0:06:22]}  Nxb4 {[%clk 0:07:09]} 17. Qf3 {[%clk 0:05:56]}  Qc6 {[%clk 0:06:44]} 18. Qxf7 {[%clk 0:05:56]}  Bc5 {[%clk 0:06:07]} 19. Rab1 {[%clk 0:05:26]}  Nxc2 {[%clk 0:05:39]} 20. Nf4 {[%clk 0:05:14]}  Rd7 {[%clk 0:04:37]} 21. Qh5 {[%clk 0:05:11]}  d3 {[%clk 0:03:48]} 22. Nxd3 {[%clk 0:05:08]}  Rhd8 {[%clk 0:02:50]} 23. Ne5 {[%clk 0:03:07]}  Rxd1+ {[%clk 0:02:49]} 24. Rxd1 {[%clk 0:03:06]}  Rxd1+ {[%clk 0:02:51]} 25. Qxd1 {[%clk 0:03:07]}  Qa4 {[%clk 0:02:52]} 26. Qf3 {[%clk 0:03:07]}  Kb8 {[%clk 0:02:30]} 27. Nc6+ {[%clk 0:02:46]}  Kc8 {[%clk 0:02:28]} 28. Ne5 {[%clk 0:02:45]}  Kb8 {[%clk 0:02:15]} 29. Qc3 {[%clk 0:02:29]}  Bb6 {[%clk 0:01:34]} 30. Nc6+ {[%clk 0:02:25]}  Ka8 {[%clk 0:01:34]} 31. Qf3 {[%clk 0:02:18]}  Ne1 {[%clk 0:01:31]} 32. Qf8+ {[%clk 0:02:18]}  Kb7 {[%clk 0:01:31]} 33. Qb8+ {[%clk 0:02:20]} 1-0


[Site "Internet"]